bitfinex/quotes_BTCUSD_20251007
["timestamp","ask_amount","ask_price","bid_price","bid_amount"]
[1759845324973,1.35002952,123590.0,123580.0,0.32720819]
[1759845325398,1.35002952,123590.0,123580.0,0.32716819]
[1759845325635,1.35002952,123590.0,123580.0,0.24008819]
[1759845325865,0.68014905,123590.0,123580.0,0.00504819]
[1759845326044,1.34902952,123590.0,123580.0,0.31948819]
[1759845326488,1.35002952,123590.0,123580.0,0.32248819]
[1759845326854,0.67914905,123590.0,123580.0,0.31948819]
[1759845327067,0.33914905,123590.0,123580.0,0.31848819]
[1759845327320,0.16376699,123590.0,123580.0,0.33667819]
[1759845327526,0.19566699,123590.0,123580.0,0.32148819]
[1759845327861,0.24570699,123590.0,123580.0,0.31848819]
[1759845327989,0.24670699,123590.0,123580.0,0.32048819]
[1759845328193,0.24670699,123590.0,123580.0,0.23808819]
[1759845328415,0.24670699,123590.0,123580.0,0.65856819]
[1759845328416,0.19566699,123590.0,123580.0,0.65856819]
[1759845330072,0.19566699,123590.0,123580.0,0.67375819]
[1759845330484,0.19566699,123590.0,123580.0,0.01723819]
[1759845330814,0.19566699,123590.0,123580.0,0.67371819]
[1759845331380,0.0029416,123590.0,123580.0,0.69271819]
[1759845331588,0.16476699,123590.0,123580.0,0.69271819]
[1759845331791,0.0029416,123590.0,123580.0,0.69271819]
[1759845332184,0.0029416,123590.0,123580.0,0.77271499]
[1759845332706,0.0019416,123590.0,123580.0,0.69271819]
[1759845332937,0.0009416,123590.0,123580.0,0.69371819]
[1759845333312,0.0019416,123590.0,123580.0,0.69471819]
[1759845333779,0.0009416,123590.0,123580.0,0.69371819]
[1759845334006,0.0009416,123590.0,123580.0,2.22351499]
[1759845334217,0.0019416,123590.0,123580.0,1.52706799]
[1759845334435,0.0019416,123590.0,123580.0,1.44707119]
[1759845335231,0.0019416,123590.0,123580.0,1.69203173]
[1759845335448,0.0019416,123590.0,123580.0,1.72218363]
[1759845335678,0.0019416,123590.0,123580.0,1.74645874]
[1759845336079,0.0009416,123590.0,123580.0,1.74245874]
[1759845336305,0.0009416,123590.0,123580.0,1.82245554]
[1759845336523,0.0019416,123590.0,123580.0,1.82745554]
[1759845336740,0.0019416,123590.0,123580.0,1.83845554]
[1759845336971,0.13187529,123640.0,123590.0,0.54006018]
[1759845337209,0.16987211,123650.0,123630.0,0.09927]
[1759845337418,0.25299417,123650.0,123640.0,0.57224]
[1759845337620,0.27240417,123650.0,123640.0,0.57224]
[1759845338053,0.27360697,123650.0,123620.0,0.0095]
[1759845338262,0.27240417,123650.0,123640.0,0.4204]
[1759845338405,0.27240417,123650.0,123640.0,0.42044819]
[1759845338645,0.08312206,123650.0,123640.0,0.43532819]
[1759845338846,0.08512206,123650.0,123640.0,0.43532819]
[1759845339055,0.26395892,123650.0,123640.0,0.67116819]
[1759845339503,0.08712206,123650.0,123640.0,0.67116819]
[1759845339702,0.24886892,123650.0,123640.0,0.67216819]
[1759845339907,0.26895892,123650.0,123640.0,0.67212819]
[1759845340471,0.005,123650.0,123640.0,0.68142819]
[1759845340680,0.005,123650.0,123640.0,0.76455025]
[1759845341281,0.005,123650.0,123640.0,1.10075025]
[1759845341498,0.005,123650.0,123640.0,1.10856595]
[1759845341701,0.001,123650.0,123640.0,0.03304389]
[1759845341938,0.17001144,123670.0,123640.0,1.04540389]
[1759845342070,0.19695144,123670.0,123640.0,1.04540389]
[1759845342306,0.16274686,123650.0,123640.0,0.37302389]
[1759845342510,0.21992686,123650.0,123640.0,0.59008819]
[1759845342739,0.21892686,123650.0,123640.0,0.66012819]
[1759845342940,0.18083686,123650.0,123640.0,0.67600819]
[1759845343120,0.18083686,123650.0,123640.0,0.02392819]
[1759845343322,0.01909,123650.0,123640.0,0.53860819]
[1759845343534,0.01909,123650.0,123640.0,0.53360819]
[1759845343746,0.18183686,123650.0,123640.0,0.53260819]
[1759845343940,0.0212928,123650.0,123640.0,0.53260819]
[1759845344144,0.18303966,123650.0,123640.0,0.53260819]
[1759845344348,0.18303966,123650.0,123640.0,0.67396819]
[1759845344961,0.18203966,123650.0,123640.0,0.67096819]
[1759845345170,0.0012028,123650.0,123640.0,0.68026819]
[1759845346060,0.0012028,123650.0,123640.0,0.68326819]
[1759845346061,0.0022028,123650.0,123640.0,0.68326819]
[1759845346229,0.16394966,123650.0,123640.0,0.01792819]
[1759845346436,0.18303966,123650.0,123640.0,1.51012819]
[1759845346636,0.18203966,123650.0,123640.0,1.00712819]
[1759845346919,0.0012028,123650.0,123640.0,1.00712819]
[1759845347122,0.0022028,123650.0,123640.0,1.01942819]
[1759845348328,0.0012028,123650.0,123640.0,1.01642819]
[1759845348495,0.0022028,123650.0,123640.0,1.01942819]
[1759845348728,0.0022028,123650.0,123640.0,1.01930819]
[1759845349707,0.16394966,123650.0,123640.0,0.01792819]
[1759845349943,0.18303966,123650.0,123640.0,1.50996819]
[1759845350145,0.18303966,123650.0,123640.0,1.04455501]
[1759845350390,0.18303966,123650.0,123640.0,0.01792819]
[1759845350611,0.18303966,123650.0,123640.0,1.17376819]
[1759845350813,0.18303966,123650.0,123640.0,0.67376819]
[1759845352182,0.18303966,123650.0,123640.0,0.01792819]
[1759845352402,0.24307966,123650.0,123640.0,0.65888819]
[1759845352814,0.31552172,123650.0,123640.0,0.00304819]
[1759845353022,1.00696219,123650.0,123640.0,0.48100819]
[1759845353225,0.33708172,123650.0,123640.0,0.56100499]
[1759845353439,0.33708172,123650.0,123640.0,0.23860819]
[1759845353610,0.33708172,123650.0,123640.0,0.65884819]
[1759845354414,0.33608172,123650.0,123640.0,0.65584819]
[1759845354755,0.33708172,123650.0,123640.0,0.65784819]
[1759845355187,0.33608172,123650.0,123640.0,0.65584819]
[1759845355544,0.33708172,123650.0,123640.0,0.65784819]
[1759845355979,0.33608172,123650.0,123640.0,0.65584819]
[1759845356184,0.24607172,123650.0,123640.0,0.67472819]
[1759845356387,0.26616172,123650.0,123640.0,0.67772819]
[1759845356616,0.26616172,123650.0,123640.0,0.67372819]
[1759845356958,0.26616172,123650.0,123640.0,0.74203101]
[1759845357162,0.24707172,123650.0,123640.0,0.74203101]
[1759845357550,0.0022028,123650.0,123640.0,0.75075101]
[1759845357730,0.0012028,123650.0,123640.0,0.74775101]
[1759845358042,0.0022028,123650.0,123640.0,0.75175101]
[1759845358508,0.0022028,123650.0,123640.0,0.74975101]
[1759845358715,0.16394966,123650.0,123640.0,0.74975101]
[1759845358931,0.18303966,123650.0,123640.0,0.08523101]
[1759845359138,0.23180966,123650.0,123640.0,0.00204819]
[1759845359353,0.24307966,123650.0,123640.0,0.54680819]
[1759845359559,0.18303966,123650.0,123640.0,0.54680819]
[1759845359767,0.18303966,123650.0,123640.0,0.62680499]
[1759845360193,0.20438966,123650.0,123640.0,0.00204819]
[1759845360435,0.0212928,123650.0,123640.0,0.67171819]
[1759845360643,0.0022028,123650.0,123640.0,0.68043819]
[1759845360891,0.0012028,123650.0,123640.0,0.67843819]
[1759845361348,0.0022028,123650.0,123640.0,0.94292719]
[1759845361541,0.0022028,123650.0,123640.0,0.10971499]
[1759845361833,0.16294966,123650.0,123640.0,0.01399819]
[1759845362047,0.16394966,123650.0,123640.0,0.93743819]
[1759845362260,0.0022028,123650.0,123640.0,0.94143819]
[1759845362484,0.0022028,123650.0,123640.0,1.09422319]
[1759845362701,0.0012028,123650.0,123640.0,1.09422319]
[1759845362912,0.0022028,123650.0,123640.0,1.18121999]
[1759845363117,0.0022028,123650.0,123640.0,1.17721999]
[1759845363356,0.0022028,123650.0,123640.0,1.01743499]
[1759845363555,0.16394966,123650.0,123640.0,0.09699499]
[1759845363771,0.0022028,123650.0,123640.0,1.00883819]
[1759845363983,0.0022028,123650.0,123640.0,1.01755819]
[1759845364219,0.0012028,123650.0,123640.0,1.01455819]
[1759845364582,0.0022028,123650.0,123640.0,1.02155819]
[1759845364793,0.0022028,123650.0,123640.0,1.01755819]
[1759845364991,0.0012028,123650.0,123640.0,1.09455499]
[1759845365197,0.0012028,123650.0,123640.0,1.09855499]
[1759845365426,0.0012028,123650.0,123640.0,1.09455499]
[1759845366443,0.0022028,123650.0,123640.0,1.10255499]
[1759845367121,0.18253966,123650.0,123640.0,1.09371499]
[1759845367308,0.0197928,123650.0,123640.0,1.08971499]
[1759845367510,0.0022028,123650.0,123640.0,1.09371499]
[1759845368074,0.18153966,123650.0,123640.0,0.23540819]
[1759845368285,0.24364966,123650.0,123640.0,0.00404819]
[1759845368500,0.25481966,123650.0,123640.0,0.66360819]
[1759845368694,0.25481966,123650.0,123640.0,0.65960819]
[1759845368902,0.25381966,123650.0,123640.0,0.65560819]
[1759845369111,0.25481966,123650.0,123640.0,0.66360819]
[1759845369315,0.25481966,123650.0,123640.0,0.65960819]
[1759845370481,0.25381966,123650.0,123640.0,0.65560819]
[1759845370683,0.25381966,123650.0,123640.0,0.65960819]
[1759845370684,0.25481966,123650.0,123640.0,0.65960819]
[1759845370895,0.25481966,123650.0,123640.0,0.66360819]
[1759845371304,0.25381966,123650.0,123640.0,0.65560819]
[1759845371510,0.25381966,123650.0,123640.0,0.66360819]
[1759845371711,0.25481966,123650.0,123640.0,0.24336819]
[1759845371929,0.25481966,123650.0,123640.0,0.65956819]
[1759845372106,0.25381966,123650.0,123640.0,0.00404819]
[1759845372321,0.25381966,123650.0,123640.0,0.65956819]
[1759845372539,0.25481966,123650.0,123640.0,0.65956819]
[1759845372734,0.25481966,123650.0,123640.0,0.66356819]
[1759845374313,0.23199966,123650.0,123640.0,0.65956819]
[1759845374520,0.23099966,123650.0,123640.0,0.65956819]
[1759845374699,0.0022028,123650.0,123640.0,0.10199499]
[1759845374904,0.0022028,123650.0,123640.0,0.67347819]
[1759845374905,0.16394966,123650.0,123640.0,0.67347819]
[1759845375108,0.0022028,123650.0,123640.0,0.67347819]
[1759845375319,0.0012028,123650.0,123640.0,2.16896625]
[1759845375536,0.0022028,123650.0,123640.0,1.64982225]
[1759845375727,0.0022028,123650.0,123640.0,1.15154105]
[1759845375933,0.0022028,123650.0,123640.0,1.14754105]
[1759845376136,0.0012028,123650.0,123640.0,1.28902405]
[1759845376340,0.0022028,123650.0,123640.0,1.29302405]
[1759845376542,0.0022028,123650.0,123640.0,1.20894405]
[1759845376860,0.0022028,123650.0,123640.0,0.20954199]
[1759845377037,0.0022028,123650.0,123640.0,0.99564819]
[1759845377038,0.19317966,123650.0,123640.0,0.99564819]
[1759845377275,0.19317966,123650.0,123640.0,1.00959819]
[1759845377485,0.19317966,123650.0,123640.0,1.01359819]
[1759845377747,0.24364966,123650.0,123640.0,0.42824819]
[1759845377970,0.25481966,123650.0,123640.0,0.66348819]
[1759845378174,0.33794172,123650.0,123640.0,0.66348819]
[1759845381398,0.33794172,123650.0,123640.0,0.42824819]
[1759845381647,0.33794172,123650.0,123640.0,0.66344819]
[1759845382266,0.33794172,123650.0,123640.0,0.65944819]
[1759845382457,0.33694172,123650.0,123640.0,0.65544819]
[1759845382673,0.28695172,123650.0,123640.0,0.65944819]
[1759845382882,0.27630172,123650.0,123640.0,0.66344819]
[1759845383305,0.32677172,123650.0,123640.0,0.66344819]
[1759845383549,0.33794172,123650.0,123640.0,0.66344819]
[1759845383750,0.33794172,123650.0,123640.0,0.00804819]
[1759845384008,0.33794172,123650.0,123640.0,0.65940819]
[1759845384194,0.33694172,123650.0,123640.0,0.65540819]
[1759845384440,0.33794172,123650.0,123640.0,0.65740819]
[1759845384672,1.589233,123650.0,123640.0,0.00204819]
[1759845384894,1.589233,123650.0,123640.0,0.65740819]
[1759845385546,1.588233,123650.0,123640.0,0.65540819]
[1759845385877,1.589233,123650.0,123640.0,0.65840819]
[1759845387008,0.67794172,123650.0,123640.0,0.65840819]
[1759845387218,0.67794172,123650.0,123640.0,0.65740819]
[1759845387431,0.68194172,123650.0,123640.0,0.65540819]
[1759845387640,0.68194172,123650.0,123640.0,0.65640819]
[1759845387641,0.68494172,123650.0,123640.0,0.65640819]
[1759845389177,1.596233,123650.0,123640.0,0.65640819]
[1759845389602,0.68494172,123650.0,123640.0,0.65640819]
[1759845390376,0.68494172,123650.0,123640.0,0.00104819]
[1759845390583,0.68494172,123650.0,123640.0,0.65640819]
[1759845390942,1.596233,123650.0,123640.0,0.65636819]
[1759845391367,0.68494172,123650.0,123640.0,0.65636819]
[1759845391633,0.68494172,123650.0,123640.0,0.66876819]
[1759845391634,0.28330172,123650.0,123640.0,0.66876819]
[1759845391838,0.18953966,123650.0,123640.0,0.72930174]
[1759845392026,0.34143172,123650.0,123640.0,0.48182174]
[1759845392230,0.34143172,123650.0,123640.0,0.65636819]
[1759845393078,0.20002966,123650.0,123640.0,0.66876819]
[1759845393488,0.20002966,123650.0,123640.0,0.65636819]
[1759845393724,0.20002966,123650.0,123640.0,0.66876819]
[1759845394148,0.18914966,123650.0,123640.0,0.66876819]
[1759845394584,0.20002966,123650.0,123640.0,0.69139093]
[1759845394961,0.16794966,123650.0,123640.0,0.69039093]
[1759845395174,0.19202966,123650.0,123640.0,0.69039093]
[1759845395381,0.19302966,123650.0,123640.0,0.67899093]
[1759845395763,0.19202966,123650.0,123640.0,0.65536819]
[1759845396359,0.22912966,123650.0,123640.0,0.65536819]
[1759845396567,0.23012966,123650.0,123640.0,0.65536819]
[1759845397124,0.23112966,123650.0,123640.0,0.65636819]
[1759845397733,0.20514966,123650.0,123640.0,0.65636819]
[1759845397931,0.16494966,123650.0,123640.0,0.74215501]
[1759845398150,0.0032028,123650.0,123640.0,0.74177501]
[1759845398517,0.16494966,123650.0,123640.0,0.73432501]
[1759845398719,0.16494966,123650.0,123640.0,0.07908501]
[1759845398923,0.16494966,123650.0,123640.0,0.55652819]
[1759845399433,0.0032028,123650.0,123640.0,0.55652819]
[1759845399635,0.19389966,123650.0,123640.0,0.55591819]
[1759845399975,0.19389966,123650.0,123640.0,0.65628819]
[1759845400178,0.19389966,123650.0,123640.0,0.66807819]
[1759845400336,0.0209628,123650.0,123640.0,0.71451844]
[1759845400539,0.0032028,123650.0,123640.0,0.71451844]
[1759845401088,0.16494966,123650.0,123640.0,0.72188844]
[1759845401280,0.19389966,123650.0,123640.0,0.70272844]
[1759845401495,0.19389966,123650.0,123640.0,0.71451844]
[1759845401806,0.19389966,123650.0,123640.0,0.05927844]
[1759845402017,0.19389966,123650.0,123640.0,0.66803819]
[1759845402371,0.0032028,123650.0,123640.0,0.66803819]
[1759845402765,0.0032028,123650.0,123640.0,0.68277819]
[1759845403025,0.0032028,123650.0,123640.0,0.67540819]
[1759845403201,0.16494966,123650.0,123640.0,0.66803819]
[1759845403402,0.16494966,123650.0,123640.0,0.74803499]
[1759845403768,0.19389966,123650.0,123640.0,0.09283499]
[1759845403968,0.23214966,123650.0,123640.0,0.65624819]
[1759845404383,0.19389966,123650.0,123640.0,0.66803819]
[1759845404597,0.19389966,123650.0,123640.0,0.01283819]
[1759845404810,0.23214966,123650.0,123640.0,0.65620819]
[1759845404994,0.23214966,123650.0,123640.0,0.23596819]
[1759845405193,0.23214966,123650.0,123640.0,0.65620819]
[1759845405395,0.20460966,123650.0,123640.0,0.72182901]
[1759845405676,0.19389966,123650.0,123640.0,0.72182901]
[1759845406677,0.19389966,123650.0,123640.0,0.06666901]
[1759845406891,0.19389966,123650.0,123640.0,0.65620819]
[1759845407387,0.22143966,123650.0,123640.0,0.65620819]
[1759845407896,0.22143966,123650.0,123640.0,0.57212819]
[1759845408105,0.25332966,123650.0,123640.0,0.42128819]
[1759845408316,0.25332966,123650.0,123640.0,0.65616819]
[1759845408563,0.19389966,123650.0,123640.0,0.65616819]
[1759845408768,0.0032028,123650.0,123640.0,0.73357501]
[1759845408975,0.0032028,123650.0,123640.0,0.74831501]
[1759845410007,0.0032028,123650.0,123640.0,0.83143707]
[1759845410612,0.0032028,123650.0,123640.0,2.71412901]
[1759845410750,0.0032028,123650.0,123640.0,2.74428091]
[1759845412535,0.0022028,123650.0,123640.0,2.74328091]
[1759845412738,0.0032028,123650.0,123640.0,2.74728091]
[1759845413066,0.0032028,123650.0,123640.0,2.74328091]
[1759845413256,0.0022028,123650.0,123640.0,2.74328091]
[1759845413475,0.0032028,123650.0,123640.0,2.74728091]
[1759845413874,0.0022028,123650.0,123640.0,2.74728091]
[1759845414110,0.13218303,123690.0,123650.0,0.50174386]
[1759845414302,0.17000733,123700.0,123680.0,0.09583]
[1759845414506,0.0002,123700.0,123690.0,0.58712945]
[1759845414720,0.0002,123700.0,123690.0,0.59012]
[1759845414917,0.16188148,123700.0,123690.0,0.086576]
[1759845415260,0.16188148,123700.0,123690.0,0.74935726]
[1759845415460,0.00070057,123700.0,123690.0,0.74935726]
[1759845416227,0.16238205,123700.0,123690.0,0.09439726]
[1759845416443,0.18314205,123700.0,123690.0,0.001]
[1759845416646,0.25676205,123700.0,123690.0,0.001]
[1759845416803,0.25376205,123700.0,123690.0,0.001]
[1759845417004,0.25376205,123700.0,123690.0,0.48616]
[1759845417207,0.18814205,123700.0,123690.0,0.24691]
[1759845417416,0.18814205,123700.0,123690.0,0.66703]
[1759845417902,0.17038205,123700.0,123690.0,0.71359893]
[1759845418143,0.18814205,123700.0,123690.0,0.71359893]
[1759845418546,0.23758205,123700.0,123690.0,0.61840893]
[1759845418899,0.18814205,123700.0,123690.0,0.04756893]
[1759845419113,0.18814205,123700.0,123690.0,0.6558]
[1759845419354,0.25876205,123700.0,123690.0,0.001]
[1759845419562,1.25317539,123700.0,123690.0,0.001]
[1759845419987,1.25317539,123700.0,123690.0,0.6558]
[1759845420207,1.62332729,123700.0,123690.0,0.085]
[1759845420422,1.62332729,123700.0,123690.0,0.31968]
[1759845420633,1.62432898,123700.0,123690.0,0.31968]
[1759845421957,1.62132898,123700.0,123690.0,0.31868]
[1759845422162,1.62332898,123700.0,123690.0,0.31968]
[1759845422587,0.16173378,123660.0,123650.0,0.40148749]
[1759845422801,0.16173378,123660.0,123650.0,1.06743749]
[1759845422970,0.17782378,123660.0,123650.0,1.06743749]
[1759845423243,0.22728378,123660.0,123650.0,0.14536429]
[1759845423479,0.22728378,123660.0,123640.0,0.34460422]
[1759845423480,0.24908378,123660.0,123640.0,0.00054008]
[1759845423720,0.15774686,123650.0,123640.0,0.00054008]
[1759845423961,0.15774686,123650.0,123640.0,0.65534827]
[1759845424175,0.16983686,123650.0,123640.0,0.75426182]
[1759845424398,0.16983686,123650.0,123640.0,0.74653507]
[1759845424892,0.16983686,123650.0,123640.0,0.74649507]
[1759845425441,0.16683686,123650.0,123640.0,0.00058827]
[1759845425715,0.16683686,123650.0,123640.0,0.42070827]
[1759845425716,0.66121892,123650.0,123640.0,0.42070827]
[1759845425967,0.66121892,123650.0,123640.0,0.45898827]
[1759845426233,0.66121892,123650.0,123640.0,0.45398827]
[1759845426733,0.16683686,123650.0,123640.0,0.47017827]
[1759845426989,0.16274686,123650.0,123640.0,0.46917827]
[1759845427501,0.16374686,123650.0,123640.0,0.46917827]
[1759845427755,0.16274686,123650.0,123640.0,0.46917827]
[1759845428025,0.17983686,123650.0,123640.0,0.5167961]
[1759845428284,0.22929686,123650.0,123640.0,0.5016061]
[1759845428499,0.23129686,123650.0,123640.0,0.5026061]
[1759845428966,0.24209686,123650.0,123640.0,0.5026061]
[1759845429224,0.25309686,123650.0,123640.0,0.45498827]
[1759845429419,0.19249686,123650.0,123640.0,0.45498827]
[1759845429868,0.003,123650.0,123640.0,0.46617827]
[1759845430275,0.003,123650.0,123640.0,0.47317827]
[1759845430480,0.003,123650.0,123640.0,0.5204961]
[1759845431141,0.003,123650.0,123640.0,0.5274961]
[1759845431359,0.003,123650.0,123640.0,0.61061816]
[1759845431564,0.003,123650.0,123640.0,0.60361816]
[1759845431922,0.001,123650.0,123640.0,0.60961816]
[1759845432128,0.0002004,123660.0,123640.0,0.60961816]
[1759845432338,0.0002004,123660.0,123650.0,0.007]
[1759845432739,0.0002004,123660.0,123650.0,0.01819]
[1759845432946,0.0002004,123660.0,123650.0,0.07955182]
[1759845433246,0.0002004,123660.0,123650.0,0.1027265]
[1759845433478,0.0002004,123660.0,123650.0,0.95043756]
[1759845433686,0.0002004,123660.0,123650.0,0.96441478]
[1759845433915,0.0002004,123660.0,123650.0,1.49842468]
[1759845435175,0.0002004,123660.0,123650.0,1.62542468]
[1759845435374,0.0022004,123660.0,123650.0,1.62542468]
[1759845435574,0.0022004,123660.0,123650.0,1.59527278]
[1759845435991,0.0022004,123660.0,123650.0,1.62542468]
[1759845436247,0.0022004,123660.0,123650.0,2.58353014]
[1759845436470,0.0022004,123660.0,123650.0,1.49265014]
[1759845436679,0.5002,123700.0,123650.0,2.59149748]
[1759845436680,0.63216666,123700.0,123650.0,2.59149748]
[1759845436891,0.4624004,123700.0,123660.0,2.18431996]
[1759845437124,0.4624004,123700.0,123690.0,0.084]
[1759845437323,0.4624004,123700.0,123690.0,0.31848]
[1759845437627,0.46320172,123700.0,123690.0,0.31848]
[1759845438123,0.46420172,123700.0,123690.0,0.31848]
[1759845438331,0.46470229,123700.0,123690.0,0.31848]
[1759845438547,0.46370229,123700.0,123690.0,0.350328]
[1759845438756,0.46370229,123700.0,123690.0,1.745254]
[1759845438985,0.46370229,123700.0,123690.0,0.91578306]
[1759845438986,0.47170229,123700.0,123690.0,0.91578306]
[1759845439192,0.46770229,123700.0,123690.0,0.91578306]
[1759845439396,0.46370229,123700.0,123690.0,0.91478306]
[1759845439602,0.47470229,123700.0,123690.0,0.91678306]
[1759845439809,0.46470229,123700.0,123690.0,0.92457059]
[1759845440018,0.46470229,123700.0,123690.0,0.60609059]
[1759845440234,0.46670229,123700.0,123690.0,0.84001259]
[1759845440449,0.46670229,123700.0,123690.0,0.26945259]
[1759845440895,0.46570229,123700.0,123690.0,0.26745259]
[1759845441174,0.46570229,123700.0,123690.0,1.11335759]
[1759845441381,0.46670229,123700.0,123690.0,1.25897159]
[1759845441587,0.46670229,123700.0,123690.0,0.12375759]
[1759845441773,0.46670229,123700.0,123690.0,1.22712359]
[1759845441929,0.46670229,123700.0,123690.0,1.08250959]
[1759845442132,0.46670229,123700.0,123690.0,1.22712359]
[1759845442549,0.46670229,123700.0,123690.0,1.08250959]
[1759845442956,0.46670229,123700.0,123690.0,1.22676359]
[1759845443169,0.46670229,123700.0,123690.0,1.30676039]
[1759845443329,0.46670229,123700.0,123690.0,0.65926433]
[1759845443532,0.71673377,123700.0,123690.0,0.42886753]
[1759845443746,0.68890377,123700.0,123690.0,0.65544]
[1759845444157,0.47770229,123700.0,123690.0,0.65544]
[1759845444381,0.46670229,123700.0,123690.0,0.65544]
[1759845445223,0.46670229,123700.0,123690.0,0.74640194]
[1759845445449,0.46670229,123700.0,123690.0,0.82639874]
[1759845446085,0.46670229,123700.0,123690.0,1.35195164]
[1759845446506,0.46670229,123700.0,123690.0,1.37620569]
[1759845447782,0.46670229,123700.0,123690.0,1.71216569]
[1759845448198,0.46670229,123700.0,123690.0,2.21386024]
[1759845448632,0.46670229,123700.0,123690.0,2.05216569]
[1759845449029,0.46670229,123700.0,123690.0,1.06176569]
[1759845449234,0.42670229,123700.0,123690.0,1.06176569]
[1759845449493,0.42670229,123700.0,123690.0,1.88637379]
[1759845451957,0.42670229,123700.0,123690.0,2.04806834]
[1759845452154,0.42670229,123700.0,123690.0,2.07822024]
[1759845452606,0.42670229,123700.0,123690.0,1.91652569]
[1759845453055,0.42670229,123700.0,123690.0,2.07822024]
[1759845453503,0.42670229,123700.0,123690.0,0.92616569]
[1759845453942,0.42670229,123700.0,123690.0,1.91640569]
[1759845454548,0.42670229,123700.0,123690.0,0.92616569]
[1759845454978,0.42670229,123700.0,123690.0,1.83236569]
[1759845455158,0.42670229,123700.0,123690.0,1.91636569]
[1759845455650,0.42670229,123700.0,123690.0,0.89601379]
[1759845455862,0.42670229,123700.0,123690.0,0.22561968]
[1759845456101,0.42670229,123700.0,123690.0,1.13582288]
[1759845456310,0.42670229,123700.0,123690.0,1.21894494]
[1759845456527,0.42670229,123700.0,123690.0,1.08216194]
[1759845456748,0.42670229,123700.0,123690.0,0.00883988]
[1759845456749,0.62702377,123700.0,123690.0,0.00883988]
[1759845456963,0.62702377,123700.0,123690.0,0.42510981]
[1759845456964,0.67541377,123700.0,123690.0,0.42510981]
[1759845457191,1.34370717,123700.0,123690.0,0.65516]
[1759845457458,1.34270717,123700.0,123690.0,0.65416]
[1759845457882,0.63777377,123700.0,123690.0,0.65516]
[1759845458095,0.42470229,123700.0,123690.0,0.720676]
[1759845458299,0.42370229,123700.0,123690.0,0.719676]
[1759845458909,0.42770229,123700.0,123690.0,0.719676]
[1759845459687,0.42970229,123700.0,123690.0,0.720676]
[1759845459909,0.42970229,123700.0,123690.0,2.43947861]
[1759845460119,0.42970229,123700.0,123690.0,2.46373358]
[1759845460316,0.42970229,123700.0,123690.0,2.30203903]
[1759845460526,0.42970229,123700.0,123690.0,2.16627303]
[1759845460729,0.42970229,123700.0,123690.0,1.89699603]
[1759845461703,0.42970229,123700.0,123690.0,2.08884248]
[1759845462958,0.42770229,123700.0,123690.0,2.08784248]
[1759845463338,0.42870229,123700.0,123690.0,2.08884248]
[1759845463749,0.42770229,123700.0,123690.0,2.08784248]
[1759845463960,0.42870229,123700.0,123690.0,2.08884248]
[1759845464168,0.42870229,123700.0,123690.0,2.22184248]
[1759845464169,0.42470229,123700.0,123690.0,2.22184248]
[1759845465000,0.17128126,123700.0,123690.0,2.15632648]
[1759845465838,0.17028126,123700.0,123690.0,2.15532648]
[1759845466058,0.17128126,123700.0,123690.0,2.16532648]
[1759845466582,0.17028126,123700.0,123690.0,2.16132648]
[1759845466796,0.17128126,123700.0,123690.0,2.16532648]
[1759845467002,0.12692824,123700.0,123690.0,2.16532648]
[1759845467209,0.12692824,123700.0,123690.0,1.82932648]
[1759845467422,0.12692824,123700.0,123690.0,1.73732648]
[1759845467622,0.12692824,123700.0,123690.0,2.64436648]
[1759845467848,0.12692824,123700.0,123690.0,2.48720648]
[1759845468086,0.12692824,123700.0,123690.0,1.82128648]
[1759845468290,0.12692824,123700.0,123690.0,1.73732648]
[1759845468515,0.0002,123720.0,123710.0,0.65682031]
[1759845468723,0.0002,123720.0,123710.0,2.36895656]
[1759845469141,0.0002,123720.0,123710.0,2.13491656]
[1759845469368,0.0002,123720.0,123710.0,2.36895656]
[1759845469674,0.0002,123720.0,123710.0,2.13491656]
[1759845469886,0.0012,123720.0,123710.0,2.37091656]
[1759845470446,0.0012,123720.0,123710.0,2.13691656]
[1759845470662,0.0012,123720.0,123710.0,2.37091656]
[1759845470857,0.0012,123720.0,123710.0,2.13891656]
[1759845471104,0.0012,123720.0,123710.0,2.37291656]
[1759845472567,0.0012,123720.0,123710.0,2.13891656]
[1759845472789,0.0012,123720.0,123710.0,2.37287656]
[1759845474315,0.00160053,123720.0,123710.0,2.37287656]
[1759845474767,0.06403802,123790.0,123750.0,0.19176347]
[1759845474956,0.24107117,123790.0,123760.0,1.26508606]
[1759845475170,0.17703315,123790.0,123760.0,0.08312206]
[1759845475401,0.16157758,123780.0,123770.0,0.73392]
[1759845475609,0.21886722,123780.0,123770.0,0.23392]
[1759845475835,0.21886663,123780.0,123770.0,0.25267475]
[1759845476042,0.20765663,123780.0,123770.0,0.25272294]
[1759845476392,0.00738964,123780.0,123770.0,0.25272294]
[1759845477102,0.01338964,123780.0,123770.0,0.25372294]
[1759845477541,0.26094663,123780.0,123770.0,0.01198247]
[1759845477778,0.01338964,123780.0,123770.0,0.67355287]
[1759845477988,0.17496663,123780.0,123770.0,0.67355287]
[1759845478235,0.02338964,123780.0,123770.0,0.67355287]
[1759845478795,0.18496663,123780.0,123770.0,0.67355287]
[1759845479398,0.02338964,123780.0,123770.0,0.67355287]
[1759845481759,0.02338964,123780.0,123770.0,0.75667493]
[1759845481968,0.02338964,123780.0,123770.0,1.09667493]
[1759845482173,0.02459055,123780.0,123770.0,2.49472997]
[1759845482371,0.16177276,123830.0,123770.0,2.49472997]
[1759845482372,0.16984834,123830.0,123780.0,0.50156768]
[1759845482625,0.16984834,123830.0,123820.0,0.00769]
[1759845482626,0.18015174,123830.0,123820.0,0.00769]
[1759845482856,0.18015174,123830.0,123820.0,0.59348247]
[1759845483057,0.18015174,123830.0,123820.0,0.57733]
[1759845483058,0.01864,123830.0,123820.0,0.57733]
[1759845483275,0.0002,123830.0,123820.0,0.57733]
[1759845483496,0.0002,123830.0,123820.0,0.59307428]
[1759845483715,0.0002,123830.0,123820.0,0.67619634]
[1759845483943,0.01914119,123830.0,123820.0,0.00769]
[1759845484149,0.92939595,123830.0,123820.0,0.4198]
[1759845484364,0.16961069,123820.0,123790.0,0.34481]
[1759845484607,0.16153856,123810.0,123800.0,0.67168]
[1759845484821,0.23973545,123810.0,123800.0,0.41972]
[1759845485029,0.18805545,123810.0,123800.0,0.66281]
[1759845485238,0.22907069,123820.0,123800.0,0.66281]
[1759845485239,0.01048,123820.0,123800.0,0.66281]
[1759845485469,0.18532083,123830.0,123810.0,0.01615378]
[1759845485667,0.17996479,123820.0,123810.0,0.5696]
[1759845485874,0.18804102,123820.0,123810.0,0.47056]
[1759845486337,0.18804102,123820.0,123810.0,0.47985]
[1759845486578,0.001,123820.0,123810.0,0.47985]
[1759845486780,0.18096479,123820.0,123810.0,0.00929]
[1759845486981,0.001,123820.0,123810.0,0.66277]
[1759845487158,0.001,123820.0,123810.0,0.66858]
[1759845487567,0.001,123820.0,123810.0,0.75170206]
[1759845487796,0.001,123820.0,123810.0,0.75370206]
[1759845488006,0.00070119,123830.0,123810.0,0.75170206]
[1759845488239,0.00070119,123830.0,123820.0,0.00581]